fUSD/lending_fUSD_20240331
["ID","MTS","AMOUNT","RATE_DAILY","PERIOD"]
[321092547,1711891849578,-551.06,0.00058082,120]
[321092548,1711891849588,-500.0,0.00058082,120]
[321092549,1711891849597,-869.44,0.00058082,120]
[321092550,1711891849606,-298.45097886,0.00058082,120]
[321092551,1711891849615,-1482.15,0.00058082,120]
[321092552,1711891849625,-3228.73,0.00058082,120]
[321092553,1711891849634,-500.0,0.00058082,120]
[321092554,1711891849643,-2837.49,0.00058082,120]
[321092555,1711891849652,-2085.26,0.00058082,120]
[321092556,1711891849661,-869.2,0.00058082,120]
[321092557,1711891849670,-7158.59,0.00058082,120]
[321092558,1711891849679,-1503.54,0.00058082,120]
[321092559,1711891849688,-750.07,0.00058082,120]
[321092560,1711891849696,-927.19,0.00058082,120]
[321092561,1711891849705,-1045.16,0.00058082,120]
[321092562,1711891849715,-875.14,0.00058082,120]
[321092563,1711891849724,-5062.17,0.00058082,120]
[321092564,1711891849733,-1244.14,0.00058082,120]
[321092565,1711891849742,-1792.76,0.00058082,21]
[321092566,1711891849751,-6300.57,0.00058082,120]
[321092567,1711891849761,-553.77,0.00058082,120]
[321092568,1711891849770,-1215.03,0.00058082,120]
[321092569,1711891849780,-556.59,0.00058082,120]
[321092570,1711891849790,-670.07,0.00058082,120]
[321092571,1711891849799,-16000.0,0.00058082,120]
[321092572,1711891849808,-4704.39,0.00058082,120]
[321092573,1711891849819,-3653.29,0.00058082,120]
[321092574,1711891849832,-1144.41,0.00058082,120]
[321092575,1711891849842,-500.0,0.00058082,120]
[321092576,1711891849851,-500.0,0.00058082,120]
[321092577,1711891849860,-255.92642,0.00058082,87]
[321092578,1711891849870,-755.03,0.00058082,120]
[321092579,1711891849880,-1074.23,0.00058082,120]
[321092580,1711891849891,-902.55,0.00058082,120]
[321092581,1711891849902,-174.0080641,0.00058139,2]
[321092582,1711891849913,-151.0,0.00058219,120]
[321092583,1711891849923,-209.95555556,0.00058247,120]
[321092584,1711891849934,-2597.93123392,0.00058256,120]
[321092585,1711891849946,-1106.84816059,0.00058256,2]
[321092586,1711891849957,-512.86975507,0.00058355,120]
[321092587,1711891849967,-500.0,0.00058356,120]
[321092588,1711891849977,-522.07,0.00058356,120]
[321092589,1711891849987,-599.98,0.00058356,120]
[321092590,1711891849997,-2592.64,0.00058356,120]
[321092591,1711891850007,-1044.02,0.00058356,120]
[321092592,1711891850017,-1000.0,0.00058356,120]
[321092593,1711891850027,-1389.73,0.00058356,120]
[321092594,1711891850036,-513.27,0.00058356,120]
[321092595,1711891850046,-617.29,0.00058356,120]
[321092596,1711891850056,-722.32,0.00058356,120]
[321092597,1711891850066,-1123.22,0.00058356,120]
[321092598,1711891850076,-843.12,0.00058356,120]
[321092599,1711891850085,-860.95,0.00058356,120]
[321092600,1711891850095,-1187.92,0.00058356,120]
[321092601,1711891850105,-893.34,0.00058356,120]
[321092602,1711891850114,-1261.28,0.00058356,120]
[321092603,1711891850124,-1258.95,0.00058356,120]
[321092604,1711891850133,-1496.0,0.00058356,120]
[321092605,1711891850143,-765.62,0.00058356,120]
[321092606,1711891850153,-211.41802935,0.00058356,120]
[321092607,1711891850163,-849.51,0.00058356,120]
[321092608,1711891850173,-5015.55,0.00058356,120]
[321092609,1711891850183,-500.0,0.00058356,120]
[321092610,1711891850193,-551.06,0.00058356,120]
[321092611,1711891850202,-500.0,0.00058356,120]
[321092612,1711891850211,-869.44,0.00058356,120]
[321092613,1711891850221,-1482.15,0.00058356,120]
[321092614,1711891850230,-3228.73,0.00058356,120]
[321092615,1711891850240,-246.12805025,0.00058356,120]
[321092616,1711891850250,-2837.49,0.00058356,120]
[321092617,1711891850259,-2085.26,0.00058356,120]
[321092618,1711891850269,-869.2,0.00058356,120]
[321092619,1711891850279,-7158.59,0.00058356,120]
[321092620,1711891850289,-1503.54,0.00058356,120]
[321092621,1711891850298,-750.07,0.00058356,120]
[321092622,1711891850342,-927.19,0.00058356,120]
[321092623,1711891850352,-1045.16,0.00058356,120]
[321092624,1711891850361,-875.14,0.00058356,120]
[321092625,1711891850370,-5062.17,0.00058356,120]
[321092626,1711891850380,-1244.14,0.00058356,120]
[321092627,1711891850388,-1792.76,0.00058356,21]
[321092628,1711891850398,-6300.57,0.00058356,120]
[321092629,1711891850407,-553.77,0.00058356,120]
[321092630,1711891850416,-1215.03,0.00058356,120]
[321092631,1711891850426,-556.59,0.00058356,120]
[321092632,1711891850435,-670.07,0.00058356,120]
[321092633,1711891850445,-4704.39,0.00058356,120]
[321092634,1711891850454,-3653.29,0.00058356,120]
[321092635,1711891850463,-1144.41,0.00058356,120]
[321092636,1711891850472,-500.0,0.00058356,120]
[321092637,1711891850481,-500.0,0.00058356,120]
[321092638,1711891850490,-755.03,0.00058356,120]
[321092639,1711891850500,-1074.23,0.00058356,120]
[321092640,1711891850509,-902.55,0.00058356,120]
[321092641,1711891850518,-151.0,0.0005843,2]
[321092642,1711891850526,-255.92642,0.0005846,89]
[321092643,1711891850535,-6575.42562241,0.00058482,37]
[321092644,1711891850545,-468.46406446,0.0005853,30]
[321092645,1711891850554,-174799.57,0.00058549,6]
[321092646,1711891850563,-150.56,0.00058575,120]
[321092647,1711891850572,-511.79067107,0.00058629,120]
[321092648,1711891850581,-204.75328341,0.0005863,120]
[321092649,1711891850590,-522.07,0.0005863,120]
[321092650,1711891850599,-599.98,0.0005863,120]
[321092651,1711891850609,-2592.64,0.0005863,120]
[321092652,1711891850618,-1044.02,0.0005863,120]
[321092653,1711891850628,-1389.73,0.0005863,120]
[321092654,1711891850637,-513.27,0.0005863,120]
[321092655,1711891850646,-617.29,0.0005863,120]
[321092656,1711891850656,-722.32,0.0005863,120]
[321092657,1711891850665,-1123.22,0.0005863,120]
[321092658,1711891850675,-843.12,0.0005863,120]
[321092659,1711891850684,-860.95,0.0005863,120]
[321092660,1711891850694,-1187.92,0.0005863,120]
[321092661,1711891850704,-893.34,0.0005863,120]
[321092662,1711891850713,-1261.28,0.0005863,120]
[321092663,1711891850723,-1258.95,0.0005863,120]
[321092664,1711891850733,-1496.0,0.0005863,120]
[321092665,1711891850743,-765.62,0.0005863,120]
[321092666,1711891850753,-849.51,0.0005863,120]
[321092667,1711891850764,-5015.55,0.0005863,120]
[321092668,1711891850774,-500.0,0.0005863,120]
[321092669,1711891850783,-551.06,0.0005863,120]
[321092670,1711891850793,-500.0,0.0005863,120]
[321092671,1711891850802,-869.44,0.0005863,120]
[321092672,1711891850813,-1482.15,0.0005863,120]
[321092673,1711891850824,-3228.73,0.0005863,120]
[321092674,1711891850835,-2837.49,0.0005863,120]
[321092675,1711891850845,-2085.26,0.0005863,120]
[321092676,1711891850855,-869.2,0.0005863,120]
[321092677,1711891850865,-7158.59,0.0005863,120]
[321092678,1711891850874,-1503.54,0.0005863,120]
[321092679,1711891850884,-750.07,0.0005863,120]
[321092680,1711891850894,-927.19,0.0005863,120]
[321092681,1711891850905,-1045.16,0.0005863,120]
[321092682,1711891850915,-875.14,0.0005863,120]
[321092683,1711891850925,-5062.17,0.0005863,120]
[321092684,1711891850934,-1244.14,0.0005863,120]
[321092685,1711891850944,-1792.76,0.0005863,21]
[321092686,1711891850954,-6300.57,0.0005863,120]
[321092687,1711891850964,-553.77,0.0005863,120]
[321092688,1711891850974,-1215.03,0.0005863,120]
[321092689,1711891850983,-556.59,0.0005863,120]
[321092690,1711891850993,-670.07,0.0005863,120]
[321092691,1711891851003,-4704.39,0.0005863,120]
[321092692,1711891851013,-3653.29,0.0005863,120]
[321092693,1711891851023,-1144.41,0.0005863,120]
[321092694,1711891851032,-502.38647411,0.0005863,120]
[321092695,1711891851042,-500.0,0.0005863,120]
[321092696,1711891851051,-755.03,0.0005863,120]
[321092697,1711891851061,-1074.23,0.0005863,120]
[321092698,1711891851071,-902.55,0.0005863,120]
[321092699,1711891851082,-347.75,0.00058713,2]
[321092700,1711891851092,-601.36745446,0.00058804,2]
[321092701,1711891851102,-338.87252134,0.00058804,59]
[321092702,1711891851111,-209.95555556,0.00058849,120]
[321092703,1711891851122,-314.35132264,0.000589,120]
[321092704,1711891851132,-522.07,0.00058904,120]
[321092705,1711891851142,-599.98,0.00058904,120]
[321092706,1711891851152,-2592.64,0.00058904,120]
[321092707,1711891851161,-1044.02,0.00058904,120]
[321092708,1711891851171,-1389.73,0.00058904,120]
[321092709,1711891851181,-513.27,0.00058904,120]
[321092710,1711891851191,-617.29,0.00058904,120]
[321092711,1711891851201,-722.32,0.00058904,120]
[321092712,1711891851211,-1123.22,0.00058904,120]
[321092713,1711891851221,-843.12,0.00058904,120]
[321092714,1711891851231,-860.95,0.00058904,120]
[321092715,1711891851241,-1187.92,0.00058904,120]
[321092716,1711891851251,-893.34,0.00058904,120]
[321092717,1711891851260,-1261.28,0.00058904,120]
[321092718,1711891851270,-1258.95,0.00058904,120]
[321092719,1711891851278,-1496.0,0.00058904,120]
[321092720,1711891851287,-765.62,0.00058904,120]
[321092721,1711891851297,-849.51,0.00058904,120]
[321092722,1711891851307,-5015.55,0.00058904,120]
[321092723,1711891851317,-500.0,0.00058904,120]
[321092724,1711891851326,-551.06,0.00058904,120]
[321092725,1711891851335,-500.0,0.00058904,120]
[321092726,1711891851345,-869.44,0.00058904,120]
[321092727,1711891851354,-1482.15,0.00058904,120]
[321092728,1711891851363,-3228.73,0.00058904,120]
[321092729,1711891851372,-2837.49,0.00058904,120]
[321092730,1711891851382,-2085.26,0.00058904,120]
[321092731,1711891851391,-869.2,0.00058904,120]
[321092732,1711891851401,-7158.59,0.00058904,120]
[321092733,1711891851410,-1503.54,0.00058904,120]
[321092734,1711891851419,-750.07,0.00058904,120]
[321092735,1711891851428,-927.19,0.00058904,120]
[321092736,1711891851438,-1045.16,0.00058904,120]
[321092737,1711891851447,-875.14,0.00058904,120]
[321092738,1711891851456,-5062.17,0.00058904,120]
[321092739,1711891851465,-1244.14,0.00058904,120]
[321092740,1711891851473,-1792.76,0.00058904,21]
[321092741,1711891851483,-6300.57,0.00058904,120]
[321092742,1711891851494,-553.77,0.00058904,120]
[321092743,1711891851505,-1215.03,0.00058904,120]
[321092744,1711891851515,-556.59,0.00058904,120]
[321092745,1711891851525,-670.07,0.00058904,120]
[321092746,1711891851535,-4704.39,0.00058904,120]
[321092747,1711891851545,-3653.29,0.00058904,120]
[321092748,1711891851555,-1144.41,0.00058904,120]
[321092749,1711891851567,-500.0,0.00058904,120]
[321092750,1711891851577,-755.03,0.00058904,120]
[321092751,1711891851587,-1074.23,0.00058904,120]
[321092752,1711891851597,-902.55,0.00058904,120]
[321092753,1711891851607,-200.0,0.00058987,3]
[321092754,1711891851617,-200.0,0.00058987,2]
[321092755,1711891851627,-15940.03811711,0.00059,120]
[321092756,1711891851637,-160000.0,0.00059,30]
[321092757,1711891851647,-1000.0,0.00059,120]
[321092758,1711891851656,-601.5194185,0.00059,120]
[321092759,1711891851667,-150.0,0.00059,120]
[321092760,1711891851676,-10000.0,0.00059,5]
[321092761,1711891851686,-250.0,0.00059,90]
[321092762,1711891851696,-566.4678764,0.00059,120]
[321092763,1711891851705,-207.0,0.00059,120]
[321092764,1711891851715,-150.0,0.00059,120]
[321092765,1711891851725,-150.0,0.00059,120]
[321092766,1711891851735,-9844.93015364,0.00059,2]
[321092767,1711891851746,-18615.66520741,0.00059,5]
[321092768,1711891851755,-7305.15154163,0.00059,120]
[321092769,1711891851765,-218.0,0.00059,120]
[321092770,1711891851775,-163.37,0.00059,30]
[321092771,1711891851784,-152.56579,0.00059,7]
[321092772,1711891851794,-40124.30435578,0.0005901,120]
[321092773,1711891851803,-568.10644683,0.0005909,2]
[321092774,1711891851813,-357182.62,0.00059152,6]
[321092775,1711891851827,-522.07,0.00059178,120]
[321092776,1711891851837,-599.98,0.00059178,120]
[321092777,1711891851847,-2592.64,0.00059178,120]
[321092778,1711891851857,-1044.02,0.00059178,120]
[321092779,1711891851867,-1000.0,0.00059178,120]
[321092780,1711891851877,-1389.73,0.00059178,120]
[321092781,1711891851888,-513.27,0.00059178,120]
[321092782,1711891851898,-617.29,0.00059178,120]
[321092783,1711891851909,-722.32,0.00059178,120]
[321092784,1711891851919,-1123.22,0.00059178,120]
[321092785,1711891851930,-843.12,0.00059178,120]
[321092786,1711891851940,-860.95,0.00059178,120]
[321092787,1711891851950,-1187.92,0.00059178,120]
[321092788,1711891851960,-893.34,0.00059178,120]
[321092789,1711891851970,-1261.28,0.00059178,120]
[321092790,1711891851980,-1258.95,0.00059178,120]
[321092791,1711891851990,-1496.0,0.00059178,120]
[321092792,1711891852000,-765.62,0.00059178,120]
[321092793,1711891852010,-849.51,0.00059178,120]
[321092794,1711891852022,-5015.55,0.00059178,120]
[321092795,1711891852033,-500.0,0.00059178,120]
[321092796,1711891852043,-551.06,0.00059178,120]
[321092797,1711891852053,-500.0,0.00059178,120]
[321092798,1711891852062,-869.44,0.00059178,120]
[321092799,1711891852072,-1482.15,0.00059178,120]
[321092800,1711891852082,-3228.73,0.00059178,120]
[321092801,1711891852091,-2837.49,0.00059178,120]
[321092802,1711891852102,-2085.26,0.00059178,120]
[321092803,1711891852112,-869.2,0.00059178,120]
[321092804,1711891852122,-7158.59,0.00059178,120]
[321092805,1711891852132,-1503.54,0.00059178,120]
[321092806,1711891852143,-750.07,0.00059178,120]
[321092807,1711891852154,-927.19,0.00059178,120]
[321092808,1711891852164,-1045.16,0.00059178,120]
[321092809,1711891852174,-875.14,0.00059178,120]
[321092810,1711891852184,-5062.17,0.00059178,120]
[321092811,1711891852195,-1244.14,0.00059178,120]
[321092812,1711891852205,-1792.76,0.00059178,21]
[321092813,1711891852215,-6300.57,0.00059178,120]
[321092814,1711891852225,-553.77,0.00059178,120]
[321092815,1711891852236,-1215.03,0.00059178,120]
[321092816,1711891852246,-556.59,0.00059178,120]
[321092817,1711891852255,-670.07,0.00059178,120]
[321092818,1711891852265,-4704.39,0.00059178,120]
[321092819,1711891852275,-3653.29,0.00059178,120]
[321092820,1711891852285,-1144.41,0.00059178,120]
[321092821,1711891852295,-500.0,0.00059178,120]
[321092822,1711891852305,-755.03,0.00059178,120]
[321092823,1711891852315,-1074.23,0.00059178,120]
[321092824,1711891852324,-902.55,0.00059178,120]
[321092825,1711891852335,-996.18,0.000594,2]
[321092826,1711891852345,-302.0,0.00059412,4]
[321092827,1711891852355,-522.07,0.00059452,120]
[321092828,1711891852365,-599.98,0.00059452,120]
[321092829,1711891852376,-2592.64,0.00059452,120]
[321092830,1711891852385,-1044.02,0.00059452,120]
[321092831,1711891852395,-1389.73,0.00059452,120]
[321092832,1711891852405,-513.27,0.00059452,120]
[321092833,1711891852415,-617.29,0.00059452,120]
[321092834,1711891852426,-722.32,0.00059452,120]
[321092835,1711891852436,-1123.22,0.00059452,120]
[321092836,1711891852446,-843.12,0.00059452,120]
[321092837,1711891852457,-860.95,0.00059452,120]
[321092838,1711891852467,-1187.92,0.00059452,120]
[321092839,1711891852477,-893.34,0.00059452,120]
[321092840,1711891852486,-1261.28,0.00059452,120]
[321092841,1711891852497,-1258.95,0.00059452,120]
[321092842,1711891852507,-1496.0,0.00059452,120]
[321092843,1711891852518,-765.62,0.00059452,120]
[321092844,1711891852528,-849.51,0.00059452,120]
[321092845,1711891852538,-5015.55,0.00059452,120]
[321092846,1711891852549,-500.0,0.00059452,120]
[321092847,1711891852559,-551.06,0.00059452,120]
[321092848,1711891852569,-500.0,0.00059452,120]
[321092849,1711891852579,-869.44,0.00059452,120]
[321092850,1711891852589,-1482.15,0.00059452,120]
[321092851,1711891852598,-3228.73,0.00059452,120]
[321092852,1711891852608,-2837.49,0.00059452,120]
[321092853,1711891852618,-2085.26,0.00059452,120]
[321092854,1711891852628,-869.2,0.00059452,120]
[321092855,1711891852638,-7158.59,0.00059452,120]
[321092856,1711891852648,-1503.54,0.00059452,120]
[321092857,1711891852659,-750.07,0.00059452,120]
[321092858,1711891852670,-927.19,0.00059452,120]
[321092859,1711891852680,-1045.16,0.00059452,120]
[321092860,1711891852690,-875.14,0.00059452,120]
[321092861,1711891852701,-5062.17,0.00059452,120]
[321092862,1711891852710,-1244.14,0.00059452,120]
[321092863,1711891852720,-1792.76,0.00059452,21]
[321092864,1711891852730,-6300.57,0.00059452,120]
[321092865,1711891852739,-553.77,0.00059452,120]
[321092866,1711891852749,-1215.03,0.00059452,120]
[321092867,1711891852760,-556.59,0.00059452,120]
[321092868,1711891852770,-670.07,0.00059452,120]
[321092869,1711891852780,-4704.39,0.00059452,120]
[321092870,1711891852790,-3653.29,0.00059452,120]
[321092871,1711891852800,-1144.41,0.00059452,120]
[321092872,1711891852810,-500.0,0.00059452,120]
[321092873,1711891852823,-755.03,0.00059452,120]
[321092874,1711891852833,-1074.23,0.00059452,120]
[321092875,1711891852842,-209.95555556,0.00059452,120]
[321092876,1711891852851,-26636.70594254,0.00059477,2]
[321092877,1711891852861,-8906.64046723,0.00059477,2]
[321092878,1711891852871,-151.0,0.000595,7]
[321092879,1711891852881,-151.0,0.00059589,120]
[321092880,1711891852890,-6575.42562241,0.00059627,38]
[321092881,1711891852901,-195.04983916,0.0005969,40]
[321092882,1711891852911,-300.0,0.000597,30]
[321092883,1711891852920,-255.92642,0.0005971,95]
[321092884,1711891852930,-522.07,0.00059726,120]
[321092885,1711891852940,-599.98,0.00059726,120]
[321092886,1711891852950,-2592.64,0.00059726,120]
[321092887,1711891852960,-1044.02,0.00059726,120]
[321092888,1711891852970,-1389.73,0.00059726,120]
[321092889,1711891852980,-513.27,0.00059726,120]
[321092890,1711891852989,-617.29,0.00059726,120]
[321092891,1711891852999,-722.32,0.00059726,120]
[321092892,1711891853009,-1123.22,0.00059726,120]
[321092893,1711891853019,-843.12,0.00059726,120]
[321092894,1711891853029,-860.95,0.00059726,120]
[321092895,1711891853038,-1187.92,0.00059726,120]
[321092896,1711891853048,-893.34,0.00059726,120]
[321092897,1711891853057,-1261.28,0.00059726,120]
[321092898,1711891853068,-1258.95,0.00059726,120]
[321092899,1711891853078,-1496.0,0.00059726,120]
[321092900,1711891853087,-765.62,0.00059726,120]
[321092901,1711891853097,-849.51,0.00059726,120]
[321092902,1711891853107,-5015.55,0.00059726,120]
[321092903,1711891853117,-500.0,0.00059726,120]
[321092904,1711891853126,-551.06,0.00059726,120]
[321092905,1711891853136,-500.0,0.00059726,120]
[321092906,1711891853145,-869.44,0.00059726,120]
[321092907,1711891853155,-1482.15,0.00059726,120]
[321092908,1711891853170,-3228.73,0.00059726,120]
[321092909,1711891853180,-2837.49,0.00059726,120]
[321092910,1711891853189,-2085.26,0.00059726,120]
[321092911,1711891853199,-869.2,0.00059726,120]
[321092912,1711891853209,-7158.59,0.00059726,120]
[321092913,1711891853219,-1503.54,0.00059726,120]
[321092914,1711891853229,-750.07,0.00059726,120]
[321092915,1711891853239,-927.19,0.00059726,120]
[321092916,1711891853249,-1045.16,0.00059726,120]
[321092917,1711891853259,-875.14,0.00059726,120]
[321092918,1711891853269,-5062.17,0.00059726,120]
[321092919,1711891853279,-1244.14,0.00059726,120]
[321092920,1711891853288,-1792.76,0.00059726,21]
[321092921,1711891853298,-6300.57,0.00059726,120]
[321092922,1711891853308,-553.77,0.00059726,120]
[321092923,1711891853318,-1215.03,0.00059726,120]
[321092924,1711891853328,-556.59,0.00059726,120]
[321092925,1711891853337,-670.07,0.00059726,120]
[321092926,1711891853347,-4704.39,0.00059726,120]
[321092927,1711891853359,-3653.29,0.00059726,120]
[321092928,1711891853369,-1144.41,0.00059726,120]
[321092929,1711891853378,-500.0,0.00059726,120]
[321092930,1711891853388,-755.03,0.00059726,120]
[321092931,1711891853397,-1074.23,0.00059726,120]
[321092932,1711891853407,-172.47938869,0.000598,30]
[321092933,1711891853417,-129999.999999,0.0005987,120]
[321092934,1711891853426,-171.16,0.000599,14]
[321092935,1711891853436,-171.12,0.000599,30]
[321092936,1711891853446,-259.36696212,0.0005998,120]
[321092937,1711891853456,-200.0,0.00059987,3]
[321092938,1711891853466,-1000.0,0.0005999,60]
[321092939,1711891853475,-522.07,0.00059999,120]
[321092940,1711891853485,-599.98,0.00059999,120]
[321092941,1711891853496,-2592.64,0.00059999,120]
[321092942,1711891853505,-1044.02,0.00059999,120]
[321092943,1711891853515,-1000.0,0.00059999,120]
[321092944,1711891853525,-1389.73,0.00059999,120]
[321092945,1711891853535,-513.27,0.00059999,120]
[321092946,1711891853544,-617.29,0.00059999,120]
[321092947,1711891853554,-722.32,0.00059999,120]
[321092948,1711891853563,-1123.22,0.00059999,120]
[321092949,1711891853573,-843.12,0.00059999,120]
[321092950,1711891853583,-860.95,0.00059999,120]
[321092951,1711891853593,-1187.92,0.00059999,120]
[321092952,1711891853602,-893.34,0.00059999,120]
[321092953,1711891853611,-1261.28,0.00059999,120]
[321092954,1711891853621,-1258.95,0.00059999,120]
[321092955,1711891853632,-1496.0,0.00059999,120]
[321092956,1711891853641,-765.62,0.00059999,120]
[321092957,1711891853652,-849.51,0.00059999,120]
[321092958,1711891853662,-5015.55,0.00059999,120]
[321092959,1711891853673,-500.0,0.00059999,120]
[321092960,1711891853682,-551.06,0.00059999,120]
[321092961,1711891853691,-232.4,0.00059999,120]
[321092962,1711891853701,-869.44,0.00059999,120]
[321092963,1711891853710,-1482.15,0.00059999,120]
[321092964,1711891853720,-3228.73,0.00059999,120]
[321092965,1711891853729,-2837.49,0.00059999,120]
[321092966,1711891853739,-2085.26,0.00059999,120]
[321092967,1711891853750,-869.2,0.00059999,120]
[321092968,1711891853760,-7158.59,0.00059999,120]
[321092969,1711891853770,-1503.54,0.00059999,120]
[321092970,1711891853780,-750.07,0.00059999,120]
[321092971,1711891853790,-927.19,0.00059999,120]
[321092972,1711891853799,-1045.16,0.00059999,120]
[321092973,1711891853809,-875.14,0.00059999,120]
[321092974,1711891853819,-5062.17,0.00059999,120]
[321092975,1711891853833,-1244.14,0.00059999,120]
[321092976,1711891853844,-1792.76,0.00059999,21]
[321092977,1711891853854,-6300.57,0.00059999,120]
[321092978,1711891853863,-553.77,0.00059999,120]
[321092979,1711891853874,-1215.03,0.00059999,120]
[321092980,1711891853884,-556.59,0.00059999,120]
[321092981,1711891853893,-670.07,0.00059999,120]
[321092982,1711891853905,-4704.39,0.00059999,120]
[321092983,1711891853916,-3653.29,0.00059999,120]
[321092984,1711891853925,-1144.41,0.00059999,120]
[321092985,1711891853935,-500.0,0.00059999,120]
[321092986,1711891853945,-755.03,0.00059999,120]
[321092987,1711891853955,-100000.0,0.0006,60]
[321092988,1711891853965,-1543.70534365,0.0006,120]
[321092989,1711891853974,-159.41557308,0.0006,120]
[321092990,1711891853984,-400.0,0.0006,7]
[321092991,1711891853994,-522.54570528,0.0006,30]
[321092992,1711891854004,-166.13,0.0006,120]
[321092993,1711891854014,-500.0,0.0006,120]
[321092994,1711891854153,-300.0,0.0006,120]
[321092995,1711891854163,-30000.0,0.0006,120]
[321092996,1711891854172,-30000.0,0.0006,120]
[321092997,1711891854181,-30000.0,0.0006,120]
[321092998,1711891854190,-30000.0,0.0006,120]
[321092999,1711891854200,-30000.0,0.0006,120]
[321093000,1711891854210,-30000.0,0.0006,120]
[321093001,1711891854219,-30000.0,0.0006,120]
[321093002,1711891854229,-7801.1385768,0.0006,120]
[321093003,1711891854240,-10000.0,0.0006,4]
[321093004,1711891854250,-155.0,0.0006,120]
[321093005,1711891854258,-1494.66562458,0.0006,7]
[321093006,1711891854267,-575.3910698,0.0006,90]
[321093007,1711891854277,-2000.0,0.0006,120]
[321093008,1711891854286,-1000.0,0.0006,120]
[321093009,1711891854295,-10000.0,0.0006,120]
[321093010,1711891854304,-1000.0,0.0006,120]
[321093011,1711891854313,-171.90418355,0.0006,120]
[321093012,1711891854323,-20000.0,0.0006,120]
[321093013,1711891854332,-23107.5896495,0.0006,120]
[321093014,1711891854341,-150.0,0.0006,120]
[321093015,1711891854352,-5005.22387315,0.0006,4]
[321093016,1711891854363,-2000.00000099,0.0006,120]
[321093017,1711891854372,-10000.0,0.0006,5]
[321093018,1711891854381,-250.0,0.0006,120]
[321093019,1711891854390,-500.0,0.0006,120]
[321093020,1711891854399,-839.80866506,0.0006,120]
[321093021,1711891854409,-776.0,0.0006,60]
[321093022,1711891854418,-150.0,0.0006,120]
[321093023,1711891854427,-150.0,0.0006,120]
[321093024,1711891854436,-8731.08717252,0.0006,14]
[321093025,1711891854446,-25000.0,0.0006,120]
[321093026,1711891854455,-20000.0,0.0006,120]
[321093027,1711891854464,-10000.0,0.0006,20]
[321093028,1711891854473,-164.75520469,0.0006,30]
[321093029,1711891854482,-11872.12566737,0.0006,120]
[321093030,1711891854491,-101247.08,0.0006,120]
[321093031,1711891854501,-386.9578503,0.0006,120]
[321093032,1711891854510,-60000.0,0.0006,120]
[321093033,1711891854518,-2000.0,0.0006,120]
[321093034,1711891854528,-155.0,0.0006,60]
[321093035,1711891854538,-897.4007763,0.0006,120]
[321093036,1711891854550,-1000.0,0.0006,60]
[321093037,1711891854560,-4354.69611739,0.0006,47]
[321093038,1711891854569,-481204.5289721,0.0006,120]
[321093039,1711891854578,-1017.16657691,0.0006,44]
[321093040,1711891854587,-151.0,0.0006,7]
[321093041,1711891854596,-151.0,0.0006,120]
[321093042,1711891854605,-151.0,0.0006,120]
[321093043,1711891854613,-151.0,0.0006,120]
[321093044,1711891854622,-151.0,0.0006,120]
[321093045,1711891854631,-10928.11,0.0006,120]
[321093046,1711891854640,-209.95555556,0.00060055,120]